fUST/lending_fUST_20240921
["ID","MTS","AMOUNT","RATE_DAILY","PERIOD"]
[338691307,1726878646304,-500.0,0.00014327,2]
[338691308,1726878646314,-500.0,0.00014327,2]
[338691309,1726878646323,-500.0,0.00014327,2]
[338691310,1726878646332,-500.0,0.00014327,2]
[338691311,1726878646342,-500.0,0.00014327,2]
[338691312,1726878646351,-500.0,0.00014327,2]
[338691313,1726878646359,-500.0,0.00014327,2]
[338691314,1726878646369,-500.0,0.00014327,2]
[338691315,1726878646378,-674.481671,0.00014327,2]
[338691316,1726878646388,-500.0,0.00014327,2]
[338691317,1726878646397,-500.0,0.00014327,2]
[338691318,1726878646407,-151.0,0.00014327,2]
[338691319,1726878646416,-500.0,0.00014327,2]
[338691320,1726878646426,-500.0,0.00014327,2]
[338691321,1726878646435,-416.861202,0.00014327,2]
[338691322,1726878646444,-416.861202,0.00014327,2]
[338691323,1726878646453,-500.0,0.00014327,2]
[338691324,1726878646462,-416.861202,0.00014327,2]
[338691325,1726878646471,-416.861202,0.00014327,2]
[338691326,1726878646480,-730.178427,0.00014327,2]
[338691327,1726878646489,-730.178427,0.00014327,2]
[338691328,1726878646498,-730.178427,0.00014327,2]
[338691329,1726878646508,-730.178427,0.00014327,2]
[338691330,1726878646518,-157.542747,0.00014327,2]
[338691331,1726878646527,-500.0,0.00014327,2]
[338691332,1726878646536,-500.0,0.00014327,2]
[338691333,1726878646546,-614.192079,0.00014327,2]
[338691334,1726878646555,-614.192079,0.00014327,2]
[338691335,1726878646564,-253.697834,0.00014327,2]
[338691336,1726878646573,-253.697834,0.00014327,2]
[338691337,1726878646582,-253.697834,0.00014327,2]
[338691338,1726878646592,-253.697834,0.00014327,2]
[338691339,1726878646601,-500.0,0.00014327,2]
[338691340,1726878646610,-500.0,0.00014327,2]
[338691341,1726878646619,-1015.997269,0.00014327,2]
[338691342,1726878646628,-1000.0,0.00014327,2]
[338691343,1726878646637,-1015.997269,0.00014327,2]
[338691344,1726878646646,-1000.0,0.00014327,2]
[338691345,1726878646655,-1000.0,0.00014327,2]
[338691346,1726878646664,-1000.0,0.00014327,2]
[338691347,1726878646673,-1000.0,0.00014327,2]
[338691348,1726878646682,-1000.0,0.00014327,2]
[338691349,1726878646691,-1000.0,0.00014327,2]
[338691350,1726878646700,-1000.0,0.00014327,2]
[338691351,1726878646709,-1000.0,0.00014327,2]
[338691352,1726878646718,-1000.0,0.00014327,2]
[338691353,1726878646727,-1000.0,0.00014327,2]
[338691354,1726878646736,-1000.0,0.00014327,2]
[338691355,1726878646745,-1015.997269,0.00014327,2]
[338691356,1726878646754,-1000.0,0.00014327,2]
[338691357,1726878646764,-1015.997269,0.00014327,2]
[338691358,1726878646773,-1000.0,0.00014327,2]
[338691359,1726878646782,-1000.0,0.00014327,2]
[338691360,1726878646791,-1000.0,0.00014327,2]
[338691361,1726878646801,-1000.0,0.00014327,2]
[338691362,1726878646810,-329.038393,0.00014327,2]
[338691363,1726878646819,-151.0,0.00014328,2]
[338691364,1726878646828,-917.115187,0.00014328,2]
[338691365,1726878646837,-917.115187,0.00014328,2]
[338691366,1726878646846,-151.0,0.00014328,2]
[338691367,1726878646855,-151.0,0.00014328,2]
[338691368,1726878646864,-151.0,0.00014328,2]
[338691369,1726878646873,-151.0,0.00014328,2]
[338691370,1726878646882,-1585.206663,0.00014328,2]
[338691371,1726878646891,-500.0,0.00014328,2]
[338691372,1726878646900,-500.0,0.00014328,2]
[338691373,1726878646909,-500.0,0.00014328,2]
[338691374,1726878646918,-500.0,0.00014328,2]
[338691375,1726878646928,-180.4,0.00014328,2]
[338691376,1726878646937,-1585.206663,0.00014328,2]
[338691377,1726878646946,-151.0,0.00014328,2]
[338691378,1726878646954,-151.0,0.00014328,2]
[338691379,1726878646963,-543.056688,0.00014328,2]
[338691380,1726878646972,-151.0,0.00014328,2]
[338691381,1726878646981,-160.0,0.00014328,2]
[338691382,1726878646990,-543.056688,0.00014328,2]
[338691383,1726878646999,-500.0,0.00014328,2]
[338691384,1726878647008,-500.0,0.00014328,2]
[338691385,1726878647018,-500.0,0.00014328,2]
[338691386,1726878647028,-151.0,0.00014328,2]
[338691387,1726878647041,-160.0,0.00014328,2]
[338691388,1726878647051,-151.0,0.00014328,2]
[338691389,1726878647060,-500.0,0.00014328,2]
[338691390,1726878647069,-500.0,0.00014328,2]
[338691391,1726878647078,-500.0,0.00014328,2]
[338691392,1726878647088,-500.0,0.00014328,2]
[338691393,1726878647097,-176.17898912,0.00014328,2]
[338691394,1726878647107,-151.0,0.00014328,2]
[338691395,1726878647116,-500.0,0.00014328,2]
[338691396,1726878647125,-500.0,0.00014328,2]
[338691397,1726878647134,-500.0,0.00014328,2]
[338691398,1726878647143,-500.0,0.00014328,2]
[338691399,1726878647152,-500.0,0.00014328,2]
[338691400,1726878647161,-614.9,0.00014328,2]
[338691401,1726878647171,-501.2014432,0.00014329,2]
[338691402,1726878647307,-500.0,0.00014329,2]
[338691403,1726878647316,-500.0,0.00014329,2]
[338691404,1726878647326,-500.0,0.00014329,2]
[338691405,1726878647335,-500.0,0.00014329,2]
[338691406,1726878647344,-500.0,0.00014329,2]
[338691407,1726878647354,-500.0,0.00014329,2]
[338691408,1726878647363,-940.42,0.00014329,2]
[338691409,1726878647373,-500.0,0.00014329,2]
[338691410,1726878647382,-500.0,0.00014329,2]
[338691411,1726878647391,-500.0,0.00014329,2]
[338691412,1726878647401,-500.0,0.00014329,2]
[338691413,1726878647410,-500.0,0.00014329,2]
[338691414,1726878647419,-500.0,0.00014329,2]
[338691415,1726878647430,-500.0,0.00014329,2]
[338691416,1726878647439,-623.27667102,0.00014329,2]
[338691417,1726878647449,-500.0,0.00014329,2]
[338691418,1726878647461,-500.0,0.00014329,2]
[338691419,1726878647471,-500.0,0.00014329,2]
[338691420,1726878647482,-500.0,0.00014329,2]
[338691421,1726878647492,-659.64,0.00014329,2]
[338691422,1726878647501,-151.0,0.00014329,2]
[338691423,1726878647510,-500.0,0.00014329,2]
[338691424,1726878647521,-830.17,0.00014329,2]
[338691425,1726878647530,-917.115187,0.00014329,2]
[338691426,1726878647540,-917.115187,0.00014329,2]
[338691427,1726878647549,-500.0,0.00014329,2]
[338691428,1726878647558,-500.0,0.00014329,2]
[338691429,1726878647568,-229.65646033,0.00014329,2]
[338691430,1726878647577,-151.0,0.00014329,2]
[338691431,1726878647586,-500.0,0.00014329,2]
[338691432,1726878647596,-500.0,0.00014329,2]
[338691433,1726878647608,-500.0,0.00014329,2]
[338691434,1726878647618,-151.0,0.00014329,2]
[338691435,1726878647628,-151.0,0.00014329,2]
[338691436,1726878647639,-500.0,0.00014329,2]
[338691437,1726878647650,-623.25,0.00014329,2]
[338691438,1726878647661,-500.0,0.00014329,2]
[338691439,1726878647672,-500.0,0.00014329,2]
[338691440,1726878647682,-500.0,0.00014329,2]
[338691441,1726878647691,-151.0,0.00014329,2]
[338691442,1726878647700,-500.0,0.00014329,2]
[338691443,1726878647710,-675.76,0.00014329,2]
[338691444,1726878647720,-500.0,0.00014329,2]
[338691445,1726878647731,-500.0,0.00014329,2]
[338691446,1726878647741,-500.0,0.00014329,2]
[338691447,1726878647751,-1585.206663,0.00014329,2]
[338691448,1726878647761,-1585.206663,0.00014329,2]
[338691449,1726878647772,-500.0,0.00014329,2]
[338691450,1726878647782,-501.50384832,0.00014329,2]
[338691451,1726878647791,-151.0,0.00014329,2]
[338691452,1726878647801,-500.0,0.00014329,2]
[338691453,1726878647810,-500.0,0.00014329,2]
[338691454,1726878647819,-500.0,0.00014329,2]
[338691455,1726878647828,-151.0,0.00014329,2]
[338691456,1726878647837,-543.056688,0.00014329,2]
[338691457,1726878647846,-151.0,0.00014329,2]
[338691458,1726878647856,-543.056688,0.00014329,2]
[338691459,1726878647865,-500.0,0.00014329,2]
[338691460,1726878647874,-674.481671,0.00014329,2]
[338691461,1726878647883,-674.481671,0.00014329,2]
[338691462,1726878647892,-614.192079,0.00014329,2]
[338691463,1726878647901,-614.192079,0.00014329,2]
[338691464,1726878647910,-1015.997269,0.00014329,2]
[338691465,1726878647920,-1015.997269,0.00014329,2]
[338691466,1726878647929,-507.71,0.0001433,2]
[338691467,1726878647938,-500.0,0.0001433,2]
[338691468,1726878647947,-500.0,0.0001433,2]
[338691469,1726878647956,-675.76,0.0001433,2]
[338691470,1726878647965,-675.76,0.0001433,2]
[338691471,1726878647975,-500.0,0.0001433,2]
[338691472,1726878647984,-500.0,0.00014331,2]
[338691473,1726878647993,-500.0,0.00014331,2]
[338691474,1726878648002,-500.0,0.00014331,2]
[338691475,1726878648011,-675.76,0.00014331,2]
[338691476,1726878648021,-675.76,0.00014331,2]
[338691477,1726878648034,-675.76,0.00014331,2]
[338691478,1726878648045,-675.76,0.00014331,2]
[338691479,1726878648054,-675.76,0.00014331,2]
[338691480,1726878648063,-151.0,0.00014332,2]
[338691481,1726878648073,-917.115187,0.00014332,2]
[338691482,1726878648083,-917.115187,0.00014332,2]
[338691483,1726878648092,-155.619532,0.00014332,2]
[338691484,1726878648102,-151.0,0.00014332,2]
[338691485,1726878648111,-151.0,0.00014332,2]
[338691486,1726878648121,-675.76,0.00014335,2]
[338691487,1726878648131,-675.76,0.00014336,2]
[338691488,1726878648141,-500.0,0.00014336,2]
[338691489,1726878648152,-500.0,0.00014336,2]
[338691490,1726878648161,-675.76,0.00014337,2]
[338691491,1726878648171,-675.76,0.00014337,2]
[338691492,1726878648182,-1585.206663,0.00014337,2]
[338691493,1726878648192,-1585.206663,0.00014337,2]
[338691494,1726878648201,-500.0,0.00014337,2]
[338691495,1726878648210,-500.0,0.00014337,2]
[338691496,1726878648219,-500.0,0.00014337,2]
[338691497,1726878648229,-500.0,0.00014337,2]
[338691498,1726878648239,-500.0,0.00014337,2]
[338691499,1726878648249,-335.0115647,0.00014337,2]
[338691500,1726878648259,-194.502187,0.00014338,2]
[338691501,1726878648269,-194.502187,0.00014338,2]
[338691502,1726878648279,-151.0,0.00014338,2]
[338691503,1726878648288,-151.0,0.00014338,2]
[338691504,1726878648298,-151.0,0.00014338,2]
[338691505,1726878648308,-151.0,0.00014338,2]
[338691506,1726878648318,-543.056688,0.00014338,2]
[338691507,1726878648327,-296.078265,0.00014338,2]
[338691508,1726878648336,-543.056688,0.00014338,2]
[338691509,1726878648345,-151.0,0.00014338,2]
[338691510,1726878648355,-151.0,0.00014338,2]
[338691511,1726878648365,-286.342554,0.00014338,2]
[338691512,1726878648374,-416.861202,0.00014338,2]
[338691513,1726878648383,-416.861202,0.00014338,2]
[338691514,1726878648392,-730.178427,0.00014338,2]
[338691515,1726878648401,-730.178427,0.00014338,2]
[338691516,1726878648410,-253.697834,0.00014338,2]
[338691517,1726878648419,-253.697834,0.00014338,2]
[338691518,1726878648428,-675.76,0.00014339,2]
[338691519,1726878648438,-675.76,0.00014339,2]
[338691520,1726878648447,-675.76,0.00014341,2]
[338691521,1726878648456,-675.76,0.00014341,2]
[338691522,1726878648465,-500.0,0.00014341,2]
[338691523,1726878648474,-208.623487,0.00014342,2]
[338691524,1726878648484,-151.0,0.00014342,2]
[338691525,1726878648494,-151.0,0.00014342,2]
[338691526,1726878648503,-151.0,0.00014342,2]
[338691527,1726878648512,-151.0,0.00014342,2]
[338691528,1726878648525,-151.0,0.00014342,2]
[338691529,1726878648535,-151.0,0.00014342,2]
[338691530,1726878648544,-414.7134,0.00014342,2]
[338691531,1726878648555,-151.0,0.00014342,2]
[338691532,1726878648565,-230.141434,0.00014342,2]
[338691533,1726878648574,-230.141434,0.00014342,2]
[338691534,1726878648583,-151.0,0.00014342,2]
[338691535,1726878648593,-675.76,0.00014349,2]
[338691536,1726878648602,-675.76,0.00014359,2]
[338691537,1726878648611,-675.76,0.00014359,2]
[338691538,1726878648622,-675.76,0.00014359,2]
[338691539,1726878648633,-675.76,0.00014359,2]
[338691540,1726878648643,-675.97704923,0.00014359,2]
[338691541,1726878648652,-500.0,0.00014373,2]
[338691542,1726878648661,-500.0,0.00014373,2]
[338691543,1726878648670,-500.0,0.00014373,2]
[338691544,1726878648680,-499.0,0.00014373,2]
[338691545,1726878648689,-500.0,0.00014373,2]
[338691546,1726878648698,-500.0,0.00014373,2]
[338691547,1726878648707,-500.0,0.00014373,2]
[338691548,1726878648717,-500.0,0.00014373,2]
[338691549,1726878648726,-501.544953,0.00014384,2]
[338691550,1726878648735,-150.112233,0.000144,2]
[338691551,1726878648745,-150.112233,0.000144,2]
[338691552,1726878648754,-150.112233,0.000144,2]
[338691553,1726878648764,-150.112233,0.000144,2]
[338691554,1726878648773,-150.112233,0.000144,2]
[338691555,1726878648782,-150.112233,0.000144,2]
[338691556,1726878648791,-151.0,0.00014469,2]
[338691557,1726878648800,-259.544407,0.00014469,2]
[338691558,1726878648809,-151.0,0.00014469,2]
[338691559,1726878648821,-151.0,0.00014469,2]
[338691560,1726878648831,-151.0,0.00014469,2]
[338691561,1726878648840,-151.0,0.00014469,2]
[338691562,1726878648849,-514.472346,0.00014469,2]
[338691563,1726878648858,-514.472346,0.00014469,2]
[338691564,1726878648867,-151.0,0.00014469,2]
[338691565,1726878648876,-151.0,0.00014469,2]
[338691566,1726878648885,-151.0,0.00014469,2]
[338691567,1726878648896,-151.0,0.00014469,2]
[338691568,1726878648905,-664.754338,0.00014469,2]
[338691569,1726878648915,-664.754338,0.00014469,2]
[338691570,1726878648926,-151.0,0.00014469,2]
[338691571,1726878648935,-500.0,0.00014469,2]
[338691572,1726878648945,-674.481671,0.00014469,2]
[338691573,1726878648955,-674.481671,0.00014469,2]
[338691574,1726878648965,-614.192079,0.00014469,2]
[338691575,1726878648974,-614.192079,0.00014469,2]
[338691576,1726878648984,-500.0,0.0001447,2]
[338691577,1726878648995,-4946.31447763,0.0001447,2]
[338691578,1726878649004,-160.974297,0.0001448,2]
[338691579,1726878649014,-160.974297,0.0001448,2]
[338691580,1726878649031,-151.0,0.0001448,2]
[338691581,1726878649041,-151.0,0.0001448,2]
[338691582,1726878649049,-252.106296,0.0001448,2]
[338691583,1726878649058,-414.7134,0.0001448,2]
[338691584,1726878649068,-151.0,0.0001448,2]
[338691585,1726878649079,-917.115187,0.0001448,2]
[338691586,1726878649088,-917.115187,0.0001448,2]
[338691587,1726878649097,-151.0,0.0001448,2]
[338691588,1726878649107,-150.112233,0.000145,2]
[338691589,1726878649117,-150.112233,0.000145,2]
[338691590,1726878649126,-150.112233,0.000145,2]
[338691591,1726878649135,-7128.60978937,0.00014564,2]
[338691592,1726878649145,-500.0,0.00014569,2]
[338691593,1726878649155,-151.292781,0.0001457,2]
[338691594,1726878649165,-151.292781,0.0001457,2]
[338691595,1726878649175,-194.502187,0.0001457,2]
[338691596,1726878649185,-194.502187,0.0001457,2]
[338691597,1726878649195,-151.0,0.0001457,2]
[338691598,1726878649205,-151.0,0.0001457,2]
[338691599,1726878649214,-500.0,0.00014571,2]
[338691600,1726878649224,-500.0,0.0001458,2]
[338691601,1726878649234,-541.52,0.0001458,2]
[338691602,1726878649244,-500.0,0.0001458,2]
[338691603,1726878649255,-500.0,0.0001458,2]
[338691604,1726878649264,-500.0,0.0001458,2]
[338691605,1726878649279,-500.0,0.0001458,2]
[338691606,1726878649289,-4946.31447763,0.00014581,2]
[338691607,1726878649299,-301.19234,0.00014581,2]
[338691608,1726878649309,-230.141434,0.00014581,2]
[338691609,1726878649318,-230.141434,0.00014581,2]
[338691610,1726878649328,-151.0,0.00014581,2]
[338691611,1726878649338,-4946.31447763,0.00014582,2]
[338691612,1726878649347,-597.48,0.00014583,2]
[338691613,1726878649356,-1433.56,0.00014583,2]
[338691614,1726878649366,-500.0,0.00014583,2]
[338691615,1726878649375,-532.18461076,0.00014583,2]
[338691616,1726878649385,-645.76,0.00014583,2]
[338691617,1726878649395,-454.87870436,0.00014583,2]
[338691618,1726878649404,-500.0,0.00014583,2]
[338691619,1726878649414,-901.07,0.00014583,2]
[338691620,1726878649423,-500.0,0.00014583,2]
[338691621,1726878649433,-21400.41,0.00014583,2]
[338691622,1726878649442,-3438.46,0.00014583,2]
[338691623,1726878649452,-500.0,0.00014583,2]
[338691624,1726878649462,-500.0,0.00014583,2]
[338691625,1726878649472,-500.0,0.00014583,2]
[338691626,1726878649481,-500.0,0.00014583,2]
[338691627,1726878649491,-500.0,0.00014583,2]
[338691628,1726878649500,-500.0,0.00014583,2]
[338691629,1726878649510,-500.0,0.00014583,2]
[338691630,1726878649522,-4946.31447763,0.00014585,2]
[338691631,1726878649531,-160.0,0.00014591,2]
[338691632,1726878649540,-151.0,0.00014591,2]
[338691633,1726878649549,-160.974297,0.00014591,2]
[338691634,1726878649558,-160.974297,0.00014591,2]
[338691635,1726878649567,-157.379203,0.00014591,2]
[338691636,1726878649577,-151.0,0.00014591,2]
[338691637,1726878649586,-414.7134,0.00014591,2]
[338691638,1726878649596,-500.0,0.00014591,2]
[338691639,1726878649606,-500.0,0.00014591,2]
[338691640,1726878649615,-500.0,0.00014591,2]
[338691641,1726878649625,-500.0,0.00014591,2]
[338691642,1726878649635,-500.0,0.00014591,2]
[338691643,1726878649644,-500.0,0.00014591,2]
[338691644,1726878649653,-1585.206663,0.00014591,2]
[338691645,1726878649663,-1585.206663,0.00014591,2]
[338691646,1726878649672,-500.0,0.00014591,2]
[338691647,1726878649681,-223.13053213,0.00014591,2]
[338691648,1726878649691,-500.0,0.00014591,2]
[338691649,1726878649701,-500.0,0.00014591,2]
[338691650,1726878649711,-500.0,0.00014591,2]
[338691651,1726878649842,-395.30576354,0.00014591,2]
[338691652,1726878649852,-500.0,0.00014591,2]
[338691653,1726878649861,-500.0,0.00014591,2]
[338691654,1726878649871,-500.0,0.00014591,2]
[338691655,1726878649881,-500.0,0.00014591,2]
[338691656,1726878649892,-256.43,0.00014591,2]
[338691657,1726878649901,-632.1,0.00014591,2]
[338691658,1726878649910,-500.0,0.00014591,2]
[338691659,1726878649921,-429.08,0.00014591,2]
[338691660,1726878649932,-500.0,0.00014591,2]
[338691661,1726878649944,-1036.91,0.00014591,2]
[338691662,1726878649953,-500.0,0.00014591,2]
[338691663,1726878649963,-669.11,0.00014591,2]
[338691664,1726878649973,-500.0,0.00014591,2]
[338691665,1726878649985,-500.0,0.00014591,2]
[338691666,1726878649994,-500.0,0.00014591,2]
[338691667,1726878650003,-500.0,0.00014591,2]
[338691668,1726878650013,-500.0,0.00014591,2]
[338691669,1726878650025,-328.69,0.00014591,2]
[338691670,1726878650038,-500.0,0.00014591,2]
[338691671,1726878650049,-500.0,0.00014591,2]
[338691672,1726878650059,-661.52,0.00014591,2]
[338691673,1726878650068,-500.0,0.00014591,2]
[338691674,1726878650079,-500.0,0.00014591,2]
[338691675,1726878650091,-500.0,0.00014591,2]
[338691676,1726878650104,-158.27,0.00014591,2]
[338691677,1726878650114,-500.0,0.00014591,2]
[338691678,1726878650126,-416.861202,0.00014591,2]
[338691679,1726878650137,-416.861202,0.00014591,2]
[338691680,1726878650148,-500.0,0.00014591,2]
[338691681,1726878650157,-230.21,0.00014591,2]
[338691682,1726878650166,-500.0,0.00014591,2]
[338691683,1726878650176,-500.0,0.00014591,2]
[338691684,1726878650188,-500.0,0.00014591,2]
[338691685,1726878650197,-730.178427,0.00014591,2]
[338691686,1726878650208,-157.35,0.00014591,2]
[338691687,1726878650218,-730.178427,0.00014591,2]
[338691688,1726878650228,-1297.38,0.00014591,2]
[338691689,1726878650239,-253.697834,0.00014591,2]
[338691690,1726878650250,-253.697834,0.00014591,2]
[338691691,1726878650260,-500.0,0.00014591,2]
[338691692,1726878650271,-1015.997269,0.00014591,2]
[338691693,1726878650280,-1015.997269,0.00014591,2]
[338691694,1726878650291,-500.0,0.00014592,2]
[338691695,1726878650301,-500.0,0.00014592,2]
[338691696,1726878650311,-660.28,0.00014592,2]
[338691697,1726878650321,-500.0,0.00014592,2]
[338691698,1726878650331,-500.0,0.00014592,2]
[338691699,1726878650340,-500.0,0.00014592,2]
[338691700,1726878650349,-500.0,0.00014592,2]
[338691701,1726878650360,-500.0,0.00014592,2]
[338691702,1726878650369,-500.0,0.00014592,2]
[338691703,1726878650378,-524.63,0.00014592,2]
[338691704,1726878650389,-500.0,0.00014592,2]
[338691705,1726878650399,-500.0,0.00014592,2]
[338691706,1726878650409,-596.23307049,0.00014592,2]
[338691707,1726878650418,-500.0,0.00014592,2]
[338691708,1726878650428,-459.52509519,0.00014592,2]
[338691709,1726878650438,-500.0,0.00014592,2]
[338691710,1726878650448,-500.0,0.00014592,2]
[338691711,1726878650458,-500.0,0.00014592,2]
[338691712,1726878650467,-500.0,0.00014592,2]
[338691713,1726878650477,-500.0,0.00014592,2]
[338691714,1726878650486,-500.0,0.00014592,2]
[338691715,1726878650496,-500.0,0.00014592,2]
[338691716,1726878650506,-500.0,0.00014592,2]
[338691717,1726878650516,-500.0,0.00014592,2]
[338691718,1726878650526,-500.0,0.00014592,2]
[338691719,1726878650536,-500.0,0.00014592,2]
[338691720,1726878650547,-194.502187,0.00014592,2]
[338691721,1726878650556,-194.502187,0.00014592,2]
[338691722,1726878650565,-500.0,0.00014592,2]
[338691723,1726878650575,-500.0,0.00014592,2]
[338691724,1726878650586,-158.62,0.00014592,2]
[338691725,1726878650595,-500.0,0.00014592,2]
[338691726,1726878650604,-151.0,0.00014592,2]
[338691727,1726878650614,-500.0,0.00014592,2]
[338691728,1726878650624,-500.0,0.00014592,2]
[338691729,1726878650634,-500.0,0.00014592,2]
[338691730,1726878650645,-500.0,0.00014592,2]
[338691731,1726878650655,-178.63402941,0.00014592,2]
[338691732,1726878650664,-500.0,0.00014592,2]
[338691733,1726878650674,-500.0,0.00014592,2]
[338691734,1726878650688,-500.0,0.00014592,2]
[338691735,1726878650698,-500.0,0.00014592,2]
[338691736,1726878650709,-500.0,0.00014592,2]
[338691737,1726878650719,-500.0,0.00014592,2]
[338691738,1726878650730,-500.0,0.00014592,2]
[338691739,1726878650742,-500.0,0.00014592,2]
[338691740,1726878650751,-500.0,0.00014592,2]
[338691741,1726878650762,-500.0,0.00014592,2]
[338691742,1726878650772,-500.0,0.00014592,2]
[338691743,1726878650784,-596.31,0.00014592,2]
[338691744,1726878650794,-500.0,0.00014592,2]
[338691745,1726878650806,-500.0,0.00014592,2]
[338691746,1726878650816,-366.76,0.00014592,2]
[338691747,1726878650827,-500.0,0.00014592,2]
[338691748,1726878650837,-500.0,0.00014592,2]
[338691749,1726878650847,-500.0,0.00014592,2]
[338691750,1726878650857,-500.0,0.00014592,2]
[338691751,1726878650867,-500.0,0.00014592,2]
[338691752,1726878650876,-500.0,0.00014592,2]
[338691753,1726878650886,-607.84,0.00014592,2]
[338691754,1726878650896,-500.0,0.00014592,2]
[338691755,1726878650905,-500.0,0.00014592,2]
[338691756,1726878650917,-500.0,0.00014592,2]
[338691757,1726878650927,-500.0,0.00014592,2]
[338691758,1726878650938,-500.0,0.00014592,2]
[338691759,1726878650948,-500.0,0.00014592,2]
[338691760,1726878650959,-500.0,0.00014592,2]
[338691761,1726878650968,-500.0,0.00014592,2]
[338691762,1726878650977,-500.0,0.00014592,2]
[338691763,1726878650987,-500.0,0.00014592,2]
[338691764,1726878650998,-500.0,0.00014592,2]
[338691765,1726878651010,-500.0,0.00014592,2]
[338691766,1726878651023,-500.0,0.00014592,2]
[338691767,1726878651044,-500.0,0.00014592,2]
[338691768,1726878651061,-500.0,0.00014592,2]
[338691769,1726878651075,-500.0,0.00014592,2]
[338691770,1726878651088,-500.0,0.00014592,2]
[338691771,1726878651102,-151.0,0.00014592,2]
[338691772,1726878651118,-500.0,0.00014592,2]
[338691773,1726878651133,-500.0,0.00014592,2]
[338691774,1726878651147,-500.0,0.00014592,2]
[338691775,1726878651163,-500.0,0.00014592,2]
[338691776,1726878651176,-500.0,0.00014592,2]
[338691777,1726878651189,-500.0,0.00014592,2]
[338691778,1726878651204,-500.0,0.00014592,2]
[338691779,1726878651219,-500.0,0.00014592,2]
[338691780,1726878651231,-151.0,0.00014592,2]
[338691781,1726878651243,-543.056688,0.00014592,2]
[338691782,1726878651256,-543.056688,0.00014592,2]
[338691783,1726878651270,-500.0,0.00014592,2]
[338691784,1726878651285,-500.0,0.00014592,2]
[338691785,1726878651302,-500.0,0.00014592,2]
[338691786,1726878651318,-500.0,0.00014592,2]
[338691787,1726878651330,-500.0,0.00014592,2]
[338691788,1726878651342,-500.0,0.00014592,2]
[338691789,1726878651356,-500.0,0.00014592,2]
[338691790,1726878651371,-500.0,0.00014592,2]
[338691791,1726878651384,-151.0,0.00014592,2]
[338691792,1726878651396,-500.0,0.00014592,2]
[338691793,1726878651409,-535.96,0.00014592,2]
[338691794,1726878651424,-500.0,0.00014592,2]
[338691795,1726878651435,-846.65,0.00014592,2]
[338691796,1726878651448,-500.0,0.00014592,2]
[338691797,1726878651460,-500.0,0.00014592,2]
[338691798,1726878651473,-816.09,0.00014592,2]
[338691799,1726878651485,-315.41578635,0.00014592,2]
[338691800,1726878652479,-500.0,0.00014297,2]
[338691801,1726878652488,-500.0,0.00014308,2]
[338691802,1726878652497,-500.0,0.00014308,2]
[338691803,1726878652507,-500.0,0.00014308,2]
[338691804,1726878652516,-500.0,0.00014308,2]
[338691805,1726878652527,-630.0169099,0.00014308,2]
[338691806,1726878652538,-500.0,0.00014308,2]